[Event "*** Titled Tuesday Blitz"]
[Site "Chess.com"]
[Date "2020.04.14"]
[Round "4"]
[White "Lysiak_Poltorak"]
[Black "NM2019"]
[Result "1-0"]
[WhiteElo "2237"]
[BlackElo "2043"]
[TimeControl "180+1"]
[EndTime "10:40:30 PDT"]
[Termination "Lysiak_Poltorak won on time"]

1. d4 {[%clk 0:03:00.9]} 1... Nf6 {[%clk 0:02:59.2]} 2. c4 {[%clk 0:03:01]} 2...
g6 {[%clk 0:02:59.5]} 3. Nc3 {[%clk 0:03:01.1]} 3... Bg7 {[%clk 0:02:58.5]} 4.
e4 {[%clk 0:03:01.3]} 4... d6 {[%clk 0:02:59.1]} 5. f3 {[%clk 0:03:01.7]} 5...
e5 {[%clk 0:02:58.5]} 6. Nge2 {[%clk 0:03:00.3]} 6... O-O {[%clk 0:02:56.1]} 7.
Bg5 {[%clk 0:02:59.3]} 7... Nbd7 {[%clk 0:02:49.6]} 8. Qd2 {[%clk 0:02:57]} 8...
c6 {[%clk 0:02:49.4]} 9. O-O-O {[%clk 0:02:46.4]} 9... Qc7 {[%clk 0:02:48.1]}
10. h4 {[%clk 0:02:40.4]} 10... h5 {[%clk 0:02:46.6]} 11. Kb1 {[%clk 0:02:30.7]}
11... a6 {[%clk 0:02:46]} 12. d5 {[%clk 0:02:16]} 12... c5 {[%clk 0:02:29.5]}
13. Ng3 {[%clk 0:02:10.2]} 13... b5 {[%clk 0:02:13.7]} 14. cxb5 {[%clk
0:02:09.1]} 14... axb5 {[%clk 0:02:13.9]} 15. Bxb5 {[%clk 0:02:09]} 15... Ba6
{[%clk 0:02:06.4]} 16. Bc6 {[%clk 0:02:06.4]} 16... Rab8 {[%clk 0:02:03.2]} 17.
Nge2 {[%clk 0:01:54.5]} 17... Rb4 {[%clk 0:01:57.5]} 18. g4 {[%clk 0:01:49]}
18... hxg4 {[%clk 0:01:53.6]} 19. h5 {[%clk 0:01:39.8]} 19... Rfb8 {[%clk
0:01:50.7]} 20. fxg4 {[%clk 0:01:12.3]} 20... Rxb2+ {[%clk 0:01:32.1]} 21. Qxb2
{[%clk 0:01:11.2]} 21... Rxb2+ {[%clk 0:01:33]} 22. Kxb2 {[%clk 0:01:10.4]}
22... Nxg4 {[%clk 0:01:32.6]} 23. hxg6 {[%clk 0:00:59.2]} 23... fxg6 {[%clk
0:01:25.4]} 24. Rdf1 {[%clk 0:00:34.2]} 24... Ndf6 {[%clk 0:00:53.2]} 25. Rhg1
{[%clk 0:00:24.5]} 25... Qb6+ {[%clk 0:00:48.2]} 26. Kc2 {[%clk 0:00:21.9]}
26... Qa5 {[%clk 0:00:42.5]} 27. Bxf6 {[%clk 0:00:20.3]} 27... Nxf6 {[%clk
0:00:42]} 28. Rxg6 {[%clk 0:00:19.9]} 28... Bxe2 {[%clk 0:00:40.3]} 29. Rfg1
{[%clk 0:00:17.4]} 29... Nh5 {[%clk 0:00:17.6]} 30. Rxd6 {[%clk 0:00:11.2]}
30... Qa6 {[%clk 0:00:16.6]} 31. Rd8+ {[%clk 0:00:09]} 31... Kf7 {[%clk
0:00:16.2]} 32. Rd7+ {[%clk 0:00:08.8]} 32... Kg8 {[%clk 0:00:14.9]} 33. Bb5
{[%clk 0:00:09.1]} 33... Qc8 {[%clk 0:00:12.6]} 34. Rd6 {[%clk 0:00:07.4]} 34...
Qh3 {[%clk 0:00:11.5]} 35. Nxe2 {[%clk 0:00:07.4]} 35... Qe3 {[%clk 0:00:10.6]}
36. Rdg6 {[%clk 0:00:06.9]} 36... Qxe4+ {[%clk 0:00:09.5]} 37. Kd2 {[%clk
0:00:06.8]} 37... Qb4+ {[%clk 0:00:07.9]} 38. Kd1 {[%clk 0:00:06.4]} 38... Qxb5
{[%clk 0:00:08.1]} 39. R6g5 {[%clk 0:00:07]} 39... Qa4+ {[%clk 0:00:07.8]} 40.
Ke1 {[%clk 0:00:07.1]} 40... Qxa2 {[%clk 0:00:08.7]} 41. Rxh5 {[%clk 0:00:06.4]}
41... Qb1+ {[%clk 0:00:07.2]} 42. Kf2 {[%clk 0:00:06.2]} 42... Qe4 {[%clk
0:00:05.9]} 43. Rhg5 {[%clk 0:00:06.3]} 43... Qh7 {[%clk 0:00:02.8]} 44. Rxg7+
{[%clk 0:00:06.5]} 44... Qxg7 {[%clk 0:00:03.1]} 45. Rxg7+ {[%clk 0:00:07.4]}
45... Kxg7 {[%clk 0:00:03.9]} 46. Ke3 {[%clk 0:00:08.3]} 46... Kf6 {[%clk
0:00:03.8]} 47. Ke4 {[%clk 0:00:09.2]} 47... c4 {[%clk 0:00:02.5]} 48. Nc3
{[%clk 0:00:09]} 48... Ke7 {[%clk 0:00:02.1]} 49. Kxe5 {[%clk 0:00:09.9]} 49...
Kd7 {[%clk 0:00:02.1]} 50. d6 {[%clk 0:00:10.8]} 1-0

[Event "*** Titled Tuesday Blitz"]
[Site "Chess.com"]
[Date "2020.04.14"]
[Round "4"]
[White "Volodar_Murzin"]
[Black "ChesterF"]
[Result "1-0"]
[WhiteElo "2680"]
[BlackElo "2504"]
[TimeControl "180+1"]
[EndTime "10:40:31 PDT"]
[Termination "Volodar_Murzin won by resignation"]

1. d4 {[%clk 0:03:00.9]} 1... Nf6 {[%clk 0:02:58.8]} 2. Nf3 {[%clk 0:03:00.4]}
2... g6 {[%clk 0:02:57.4]} 3. Bg5 {[%clk 0:02:57.8]} 3... Bg7 {[%clk 0:02:57.1]}
4. Nbd2 {[%clk 0:02:55.7]} 4... O-O {[%clk 0:02:50.4]} 5. e3 {[%clk 0:02:47.2]}
5... d6 {[%clk 0:02:49.6]} 6. Bd3 {[%clk 0:02:45.6]} 6... Nbd7 {[%clk 0:02:37]}
7. O-O {[%clk 0:02:43]} 7... b6 {[%clk 0:02:36.8]} 8. Qe2 {[%clk 0:02:42.1]}
8... Bb7 {[%clk 0:02:36.2]} 9. Ba6 {[%clk 0:02:41]} 9... Bc6 {[%clk 0:02:28.1]}
10. a4 {[%clk 0:02:31.7]} 10... Rb8 {[%clk 0:02:27.2]} 11. c3 {[%clk 0:02:21.5]}
11... h6 {[%clk 0:02:24.9]} 12. Bh4 {[%clk 0:02:17.2]} 12... g5 {[%clk
0:02:18.6]} 13. Bg3 {[%clk 0:02:15.3]} 13... Nh5 {[%clk 0:02:18.8]} 14. Bd3
{[%clk 0:01:59.7]} 14... f5 {[%clk 0:02:03.3]} 15. Ne1 {[%clk 0:01:30.9]} 15...
Nxg3 {[%clk 0:01:58]} 16. fxg3 {[%clk 0:01:20.6]} 16... e6 {[%clk 0:01:56.3]}
17. Nc2 {[%clk 0:01:08.2]} 17... Bb7 {[%clk 0:01:53.7]} 18. e4 {[%clk
0:01:05.9]} 18... f4 {[%clk 0:01:48.5]} 19. gxf4 {[%clk 0:01:04]} 19... gxf4
{[%clk 0:01:48]} 20. Bc4 {[%clk 0:00:42.4]} 20... Qf6 {[%clk 0:01:34.7]} 21. Rf2
{[%clk 0:00:16.9]} 21... Kh8 {[%clk 0:01:29.6]} 22. Qg4 {[%clk 0:00:15.8]} 22...
Rbd8 {[%clk 0:01:22.5]} 23. Raf1 {[%clk 0:00:14.3]} 23... e5 {[%clk 0:01:22]}
24. Ne3 {[%clk 0:00:09.9]} 24... exd4 {[%clk 0:00:56.9]} 25. Rxf4 {[%clk
0:00:08.2]} 25... Qg5 {[%clk 0:00:43.4]} 26. Nf5 {[%clk 0:00:06.8]} 26... Ne5
{[%clk 0:00:23.8]} 27. Qxg5 {[%clk 0:00:02.5]} 27... hxg5 {[%clk 0:00:23.6]} 28.
R4f3 {[%clk 0:00:03.1]} 28... Nxf3+ {[%clk 0:00:22.9]} 29. Rxf3 {[%clk 0:00:04]}
29... g4 {[%clk 0:00:22.9]} 30. Rg3 {[%clk 0:00:03.6]} 30... Rxf5 {[%clk
0:00:21.4]} 31. exf5 {[%clk 0:00:03.4]} 31... dxc3 {[%clk 0:00:21.6]} 32. bxc3
{[%clk 0:00:04.3]} 32... Be5 {[%clk 0:00:21.1]} 33. Rxg4 {[%clk 0:00:04.6]}
33... Bxc3 {[%clk 0:00:21]} 34. Rh4+ {[%clk 0:00:04.9]} 34... Kg7 {[%clk
0:00:20.4]} 35. Nf1 {[%clk 0:00:05.3]} 35... Bd4+ {[%clk 0:00:19.8]} 36. Rxd4
{[%clk 0:00:04.5]} 36... Re8 {[%clk 0:00:19.8]} 37. Ng3 {[%clk 0:00:04.4]} 37...
Kf6 {[%clk 0:00:19.4]} 38. Rg4 {[%clk 0:00:04.1]} 38... Re1+ {[%clk 0:00:18.6]}
39. Kf2 {[%clk 0:00:04.2]} 39... Rc1 {[%clk 0:00:18.5]} 40. Rg6+ {[%clk
0:00:03.8]} 40... Ke5 {[%clk 0:00:18.7]} 41. Re6+ {[%clk 0:00:03.7]} 41... Kd4
{[%clk 0:00:17.7]} 42. Ne2+ {[%clk 0:00:04.1]} 42... Kxc4 {[%clk 0:00:17.1]} 43.
Nxc1 {[%clk 0:00:05]} 43... Kd5 {[%clk 0:00:16.5]} 44. Re7 {[%clk 0:00:04.9]}
44... Ba6 {[%clk 0:00:16.2]} 45. f6 {[%clk 0:00:05.1]} 45... Bc4 {[%clk
0:00:12.5]} 46. f7 {[%clk 0:00:05.7]} 46... Kc5 {[%clk 0:00:11.2]} 47. f8=Q
{[%clk 0:00:06.1]} 47... Kb4 {[%clk 0:00:09.4]} 48. Rxc7 {[%clk 0:00:05.5]}
48... Kxa4 {[%clk 0:00:09.6]} 49. Qxd6 {[%clk 0:00:06.4]} 1-0

[Event "*** Titled Tuesday Blitz"]
[Site "Chess.com"]
[Date "2020.04.14"]
[Round "4"]
[White "Megagigahiper3345"]
[Black "Casper_Schoppen"]
[Result "0-1"]
[WhiteElo "2491"]
[BlackElo "2985"]
[TimeControl "180+1"]
[EndTime "10:40:31 PDT"]
[Termination "Casper_Schoppen won by resignation"]

1. d4 {[%clk 0:03:00.7]} 1... Nf6 {[%clk 0:02:58.9]} 2. c4 {[%clk 0:02:59.1]}
2... e6 {[%clk 0:02:59.6]} 3. Nf3 {[%clk 0:02:56.9]} 3... d5 {[%clk 0:02:59.9]}
4. Nc3 {[%clk 0:02:45.2]} 4... a6 {[%clk 0:03:00]} 5. cxd5 {[%clk 0:02:43.5]}
5... exd5 {[%clk 0:03:00.9]} 6. Bg5 {[%clk 0:02:43.4]} 6... Be6 {[%clk
0:03:00.2]} 7. e3 {[%clk 0:02:43.6]} 7... Nbd7 {[%clk 0:02:58.9]} 8. Bd3 {[%clk
0:02:43.8]} 8... Bd6 {[%clk 0:02:52.2]} 9. O-O {[%clk 0:02:42.2]} 9... O-O
{[%clk 0:02:51.8]} 10. Bf4 {[%clk 0:02:34.3]} 10... Bxf4 {[%clk 0:02:37.2]} 11.
exf4 {[%clk 0:02:35.2]} 11... Bg4 {[%clk 0:02:37.6]} 12. h3 {[%clk 0:02:32.5]}
12... Bxf3 {[%clk 0:02:37.8]} 13. Qxf3 {[%clk 0:02:33.4]} 13... c6 {[%clk
0:02:38]} 14. Rad1 {[%clk 0:02:21.2]} 14... Re8 {[%clk 0:02:33.8]} 15. b3 {[%clk
0:02:14]} 15... Qe7 {[%clk 0:02:19.4]} 16. g4 {[%clk 0:02:00.7]} 16... Nf8
{[%clk 0:01:53.4]} 17. f5 {[%clk 0:01:54.8]} 17... Qb4 {[%clk 0:01:53.3]} 18.
Ne2 {[%clk 0:01:47.3]} 18... Ne4 {[%clk 0:01:51]} 19. Qf4 {[%clk 0:01:29.3]}
19... Qd6 {[%clk 0:01:45.8]} 20. Qxd6 {[%clk 0:01:20.2]} 20... Nxd6 {[%clk
0:01:46.7]} 21. Nf4 {[%clk 0:01:18.9]} 21... Nb5 {[%clk 0:01:44.2]} 22. Bxb5
{[%clk 0:01:06.4]} 22... axb5 {[%clk 0:01:45.1]} 23. Rd2 {[%clk 0:01:06.5]}
23... Re4 {[%clk 0:01:40.2]} 24. Ng2 {[%clk 0:01:05.7]} 24... Nd7 {[%clk
0:01:39.5]} 25. f3 {[%clk 0:01:03.7]} 25... Ree8 {[%clk 0:01:40]} 26. Kf2 {[%clk
0:01:03.6]} 26... Ra3 {[%clk 0:01:24.6]} 27. Rc1 {[%clk 0:01:03.2]} 27... g6
{[%clk 0:01:14.7]} 28. fxg6 {[%clk 0:01:00.8]} 28... fxg6 {[%clk 0:01:15.6]} 29.
Rcc2 {[%clk 0:00:57.2]} 29... Rf8 {[%clk 0:01:07.8]} 30. Re2 {[%clk 0:00:53.3]}
30... Rf7 {[%clk 0:01:05.3]} 31. Kg3 {[%clk 0:00:49.2]} 31... Ra8 {[%clk
0:01:04.8]} 32. Re6 {[%clk 0:00:45.9]} 32... Raf8 {[%clk 0:01:03.3]} 33. Re3
{[%clk 0:00:41.1]} 33... Nb6 {[%clk 0:00:57.7]} 34. Rce2 {[%clk 0:00:38.9]}
34... Nc8 {[%clk 0:00:57.1]} 35. Ne1 {[%clk 0:00:34.6]} 35... Nd6 {[%clk
0:00:53.6]} 36. Nd3 {[%clk 0:00:34.7]} 36... Kg7 {[%clk 0:00:51.8]} 37. Re7
{[%clk 0:00:25.7]} 37... Ne4+ {[%clk 0:00:47.5]} 38. fxe4 {[%clk 0:00:19.8]}
38... Rxe7 {[%clk 0:00:46.6]} 39. e5 {[%clk 0:00:19.7]} 39... Ref7 {[%clk
0:00:47]} 40. Re3 {[%clk 0:00:20.2]} 40... Rf1 {[%clk 0:00:35]} 41. Nc5 {[%clk
0:00:20.5]} 41... R8f7 {[%clk 0:00:33.3]} 42. Ne6+ {[%clk 0:00:18.4]} 42... Kg8
{[%clk 0:00:32.6]} 43. Ng5 {[%clk 0:00:16.1]} 43... Re7 {[%clk 0:00:31.8]} 44.
Nf3 {[%clk 0:00:16.1]} 44... Kg7 {[%clk 0:00:26.5]} 45. h4 {[%clk 0:00:13.9]}
45... Rd1 {[%clk 0:00:26]} 46. b4 {[%clk 0:00:10.9]} 46... Rb1 {[%clk
0:00:20.3]} 47. a3 {[%clk 0:00:10.7]} 47... Rd1 {[%clk 0:00:20]} 48. h5 {[%clk
0:00:10.4]} 48... gxh5 {[%clk 0:00:19]} 49. gxh5 {[%clk 0:00:11.3]} 49... Kh6
{[%clk 0:00:19.4]} 50. Nh4 {[%clk 0:00:09.7]} 50... Kg5 {[%clk 0:00:19.4]} 51.
Nf3+ {[%clk 0:00:05.7]} 51... Kxh5 {[%clk 0:00:19.7]} 52. e6 {[%clk 0:00:05.3]}
52... Kg6 {[%clk 0:00:19.5]} 53. Kf4 {[%clk 0:00:05.6]} 53... Kf6 {[%clk
0:00:19.4]} 54. Ng5 {[%clk 0:00:05]} 54... Rf1+ {[%clk 0:00:19.2]} 55. Kg4
{[%clk 0:00:05.2]} 55... Rg1+ {[%clk 0:00:19.1]} 56. Kh5 {[%clk 0:00:03.5]}
56... Rxg5+ {[%clk 0:00:19]} 57. Kh6 {[%clk 0:00:04.4]} 57... Rg6+ {[%clk
0:00:17.7]} 58. Kh5 {[%clk 0:00:04.2]} 58... Rxe6 {[%clk 0:00:18.1]} 59. Rf3+
{[%clk 0:00:05.1]} 59... Kg7 {[%clk 0:00:18.4]} 0-1

[Event "*** Titled Tuesday Blitz"]
[Site "Chess.com"]
[Date "2020.04.14"]
[Round "4"]
[White "Larina_Marija"]
[Black "tgpgoat"]
[Result "1-0"]
[WhiteElo "2340"]
[BlackElo "2098"]
[TimeControl "180+1"]
[EndTime "10:40:31 PDT"]
[Termination "Larina_Marija won on time"]

1. e4 {[%clk 0:02:55.8]} 1... c5 {[%clk 0:02:52.7]} 2. Nc3 {[%clk 0:02:54.8]}
2... Nc6 {[%clk 0:02:52.4]} 3. Nf3 {[%clk 0:02:52.3]} 3... e6 {[%clk 0:02:50.2]}
4. d4 {[%clk 0:02:50.1]} 4... cxd4 {[%clk 0:02:51.1]} 5. Nxd4 {[%clk 0:02:50.2]}
5... Qc7 {[%clk 0:02:51.1]} 6. g3 {[%clk 0:02:49.5]} 6... Nf6 {[%clk 0:02:38.5]}
7. Bg2 {[%clk 0:02:49.1]} 7... a6 {[%clk 0:02:38.3]} 8. O-O {[%clk 0:02:48.7]}
8... d6 {[%clk 0:02:38.6]} 9. Re1 {[%clk 0:02:41]} 9... Be7 {[%clk 0:02:38]} 10.
Nxc6 {[%clk 0:02:40.6]} 10... bxc6 {[%clk 0:02:37.6]} 11. e5 {[%clk 0:02:38.5]}
11... dxe5 {[%clk 0:02:00.4]} 12. Rxe5 {[%clk 0:02:37.6]} 12... Bb7 {[%clk
0:01:55.3]} 13. Re1 {[%clk 0:01:55.7]} 13... Rd8 {[%clk 0:01:49.9]} 14. Qe2
{[%clk 0:01:52]} 14... O-O {[%clk 0:01:47.1]} 15. b3 {[%clk 0:01:39.1]} 15... c5
{[%clk 0:01:43.7]} 16. f3 {[%clk 0:01:35.3]} 16... Nd5 {[%clk 0:01:18.5]} 17.
Ne4 {[%clk 0:01:29.1]} 17... Nf6 {[%clk 0:01:09.1]} 18. Bb2 {[%clk 0:01:20.5]}
18... Nxe4 {[%clk 0:01:04.6]} 19. fxe4 {[%clk 0:01:20.4]} 19... e5 {[%clk
0:00:42.2]} 20. c4 {[%clk 0:01:17.3]} 20... f6 {[%clk 0:00:40.6]} 21. Rad1
{[%clk 0:01:15]} 21... Rxd1 {[%clk 0:00:38]} 22. Rxd1 {[%clk 0:01:14.5]} 22...
Rd8 {[%clk 0:00:38.6]} 23. Bc3 {[%clk 0:01:10.4]} 23... Rxd1+ {[%clk 0:00:23.8]}
24. Qxd1 {[%clk 0:01:09.6]} 24... Qd6 {[%clk 0:00:24.2]} 25. Qe2 {[%clk
0:01:02]} 25... Bc8 {[%clk 0:00:20.5]} 26. Bf3 {[%clk 0:00:55.7]} 26... Bb7
{[%clk 0:00:19.8]} 27. Bg4 {[%clk 0:00:54.5]} 27... Bc6 {[%clk 0:00:17.4]} 28.
Bf5 {[%clk 0:00:40.7]} 28... Bd7 {[%clk 0:00:12.5]} 29. Bxd7 {[%clk 0:00:39.5]}
29... Qxd7 {[%clk 0:00:13.4]} 30. Kg2 {[%clk 0:00:38.4]} 30... Kf7 {[%clk
0:00:13.2]} 31. Qh5+ {[%clk 0:00:36.6]} 31... Kg8 {[%clk 0:00:13]} 32. Qe2
{[%clk 0:00:36.1]} 32... Kf7 {[%clk 0:00:13]} 33. h4 {[%clk 0:00:31.3]} 33... g6
{[%clk 0:00:12.8]} 34. h5 {[%clk 0:00:30.9]} 34... Kg7 {[%clk 0:00:13]} 35. hxg6
{[%clk 0:00:30.1]} 35... hxg6 {[%clk 0:00:13.9]} 36. Qd2 {[%clk 0:00:25.6]}
36... Qxd2+ {[%clk 0:00:13.5]} 37. Bxd2 {[%clk 0:00:25.5]} 37... Kf7 {[%clk
0:00:14.4]} 38. a3 {[%clk 0:00:24.2]} 38... Ke6 {[%clk 0:00:15.3]} 39. b4 {[%clk
0:00:22]} 39... cxb4 {[%clk 0:00:15.4]} 40. axb4 {[%clk 0:00:22.2]} 40... Kd7
{[%clk 0:00:15.5]} 41. b5 {[%clk 0:00:18.5]} 41... axb5 {[%clk 0:00:15.1]} 42.
cxb5 {[%clk 0:00:18.7]} 42... f5 {[%clk 0:00:15.1]} 43. Kf3 {[%clk 0:00:16.9]}
43... Kc7 {[%clk 0:00:11.4]} 44. Be3 {[%clk 0:00:16.2]} 44... Kb7 {[%clk
0:00:09.1]} 45. g4 {[%clk 0:00:15.9]} 45... f4 {[%clk 0:00:08.4]} 46. Bf2 {[%clk
0:00:15.9]} 46... Bf6 {[%clk 0:00:08.2]} 47. Ke2 {[%clk 0:00:14.7]} 47... Kc7
{[%clk 0:00:08.4]} 48. Kd3 {[%clk 0:00:14.7]} 48... Kd6 {[%clk 0:00:07]} 49. Kc4
{[%clk 0:00:14.9]} 49... Bd8 {[%clk 0:00:04.6]} 50. Bc5+ {[%clk 0:00:14]} 50...
Ke6 {[%clk 0:00:02.8]} 51. b6 {[%clk 0:00:13.4]} 51... Kd7 {[%clk 0:00:03.2]}
52. Kd5 {[%clk 0:00:12.9]} 52... Kc8 {[%clk 0:00:02.9]} 53. Kc6 {[%clk
0:00:12.3]} 53... Bxb6 {[%clk 0:00:01.7]} 54. Bxb6 {[%clk 0:00:12]} 1-0

[Event "*** Titled Tuesday Blitz"]
[Site "Chess.com"]
[Date "2020.04.14"]
[Round "4"]
[White "NastaJ"]
[Black "checkmatequen"]
[Result "0-1"]
[WhiteElo "1922"]
[BlackElo "2213"]
[TimeControl "180+1"]
[EndTime "10:40:33 PDT"]
[Termination "checkmatequen won on time"]

1. e4 {[%clk 0:02:57.6]} 1... c5 {[%clk 0:02:55.9]} 2. c3 {[%clk 0:02:57.2]}
2... d5 {[%clk 0:02:54.8]} 3. exd5 {[%clk 0:02:56.9]} 3... Qxd5 {[%clk
0:02:55.7]} 4. d4 {[%clk 0:02:56.9]} 4... Nf6 {[%clk 0:02:53.7]} 5. Nf3 {[%clk
0:02:55.7]} 5... Bg4 {[%clk 0:02:53.6]} 6. Be2 {[%clk 0:02:55.5]} 6... Nc6
{[%clk 0:02:53.5]} 7. Be3 {[%clk 0:02:52]} 7... cxd4 {[%clk 0:02:53.1]} 8. cxd4
{[%clk 0:02:51.8]} 8... e6 {[%clk 0:02:53.2]} 9. O-O {[%clk 0:02:46.7]} 9... Be7
{[%clk 0:02:53]} 10. Nc3 {[%clk 0:02:45.9]} 10... Qd6 {[%clk 0:02:53.1]} 11. h3
{[%clk 0:02:43.4]} 11... Bh5 {[%clk 0:02:52]} 12. Qb3 {[%clk 0:02:38.7]} 12...
O-O {[%clk 0:02:51.2]} 13. Rfd1 {[%clk 0:02:37.5]} 13... Rfd8 {[%clk 0:02:43.5]}
14. Nb5 {[%clk 0:02:17.6]} 14... Qd7 {[%clk 0:02:41.6]} 15. Ne5 {[%clk
0:01:39.1]} 15... Qc8 {[%clk 0:02:18.4]} 16. Bxh5 {[%clk 0:01:36.7]} 16... Nxh5
{[%clk 0:02:18.8]} 17. Rac1 {[%clk 0:01:21]} 17... a6 {[%clk 0:02:18.4]} 18.
Nxc6 {[%clk 0:01:11.1]} 18... bxc6 {[%clk 0:02:17.6]} 19. Nc3 {[%clk 0:01:09.9]}
19... Rb8 {[%clk 0:02:17.1]} 20. Qc2 {[%clk 0:01:08.7]} 20... Qb7 {[%clk
0:02:15.6]} 21. Na4 {[%clk 0:01:07]} 21... Rbc8 {[%clk 0:01:57.1]} 22. Nc5
{[%clk 0:01:04.5]} 22... Bxc5 {[%clk 0:01:57.1]} 23. dxc5 {[%clk 0:01:04.1]}
23... Nf6 {[%clk 0:01:57.5]} 24. Bg5 {[%clk 0:01:01.9]} 24... Rxd1+ {[%clk
0:01:55.6]} 25. Rxd1 {[%clk 0:01:01.7]} 25... Nd5 {[%clk 0:01:56.4]} 26. a3
{[%clk 0:00:58.4]} 26... f6 {[%clk 0:01:55.7]} 27. Bc1 {[%clk 0:00:56]} 27...
Rb8 {[%clk 0:01:53.5]} 28. b4 {[%clk 0:00:53]} 28... e5 {[%clk 0:01:46.4]} 29.
Qc4 {[%clk 0:00:38.2]} 29... Qb5 {[%clk 0:01:37]} 30. Qb3 {[%clk 0:00:37.2]}
30... a5 {[%clk 0:01:33]} 31. Bd2 {[%clk 0:00:33.3]} 31... Kf8 {[%clk
0:01:22.1]} 32. Qc2 {[%clk 0:00:29.1]} 32... axb4 {[%clk 0:01:18.8]} 33. axb4
{[%clk 0:00:28.4]} 33... g6 {[%clk 0:01:16.4]} 34. Rb1 {[%clk 0:00:25.3]} 34...
Kg7 {[%clk 0:01:15.4]} 35. Qa2 {[%clk 0:00:22.9]} 35... Qb7 {[%clk 0:01:07]} 36.
Kh2 {[%clk 0:00:16.4]} 36... Ra8 {[%clk 0:01:05.5]} 37. Qc2 {[%clk 0:00:15.5]}
37... Qb5 {[%clk 0:00:55.1]} 38. Qb3 {[%clk 0:00:12.1]} 38... Ra4 {[%clk
0:00:52]} 39. Be1 {[%clk 0:00:08.2]} 39... Nc7 {[%clk 0:00:33.1]} 40. Qd1 {[%clk
0:00:05.2]} 40... Nd5 {[%clk 0:00:32.3]} 41. Qb3 {[%clk 0:00:05]} 41... Ra7
{[%clk 0:00:31.4]} 42. Bd2 {[%clk 0:00:04.8]} 42... Rd7 {[%clk 0:00:25.5]} 43.
Be1 {[%clk 0:00:03.5]} 43... Nf4 {[%clk 0:00:25.2]} 44. g3 {[%clk 0:00:02.8]}
44... Rd3 {[%clk 0:00:20]} 45. Qa2 {[%clk 0:00:01.9]} 45... Nd5 {[%clk
0:00:16.8]} 46. Qa7+ {[%clk 0:00:02.2]} 46... Kh6 {[%clk 0:00:15.9]} 47. Rb2
{[%clk 0:00:01.1]} 47... Rd1 {[%clk 0:00:09.8]} 48. Bd2+ {[%clk 0:00:01.2]}
48... g5 {[%clk 0:00:10.3]} 0-1

[Event "*** Titled Tuesday Blitz"]
[Site "Chess.com"]
[Date "2020.04.14"]
[Round "4"]
[White "misha_chessone"]
[Black "Efremov_Vlad"]
[Result "0-1"]
[WhiteElo "2209"]
[BlackElo "2134"]
[TimeControl "180+1"]
[EndTime "10:40:35 PDT"]
[Termination "Efremov_Vlad won by resignation"]

1. d4 {[%clk 0:03:00.9]} 1... d5 {[%clk 0:02:59.1]} 2. c4 {[%clk 0:03:01]} 2...
e6 {[%clk 0:02:58.6]} 3. Nc3 {[%clk 0:03:00.8]} 3... Bb4 {[%clk 0:02:57.9]} 4.
Qc2 {[%clk 0:03:00.5]} 4... Nf6 {[%clk 0:02:57.1]} 5. cxd5 {[%clk 0:02:56.2]}
5... exd5 {[%clk 0:02:54.4]} 6. Bg5 {[%clk 0:02:56.1]} 6... O-O {[%clk
0:02:53.3]} 7. e3 {[%clk 0:02:55.5]} 7... h6 {[%clk 0:02:53.4]} 8. Bh4 {[%clk
0:02:55.1]} 8... c5 {[%clk 0:02:50.1]} 9. dxc5 {[%clk 0:02:54.3]} 9... d4 {[%clk
0:02:19.1]} 10. exd4 {[%clk 0:02:51.9]} 10... Qxd4 {[%clk 0:02:19.1]} 11. Bxf6
{[%clk 0:02:44.3]} 11... Qxf6 {[%clk 0:02:18.8]} 12. Nf3 {[%clk 0:02:38]} 12...
Re8+ {[%clk 0:02:18.3]} 13. Be2 {[%clk 0:02:38.2]} 13... Bxc3+ {[%clk
0:02:17.8]} 14. bxc3 {[%clk 0:02:38.1]} 14... Qe7 {[%clk 0:02:15.8]} 15. Rd1
{[%clk 0:02:22.2]} 15... Na6 {[%clk 0:02:14.3]} 16. Rd2 {[%clk 0:02:06.5]} 16...
Nxc5 {[%clk 0:02:12.9]} 17. O-O {[%clk 0:02:03.5]} 17... Bg4 {[%clk 0:02:12.9]}
18. h3 {[%clk 0:01:55.4]} 18... Bh5 {[%clk 0:02:12.4]} 19. Nd4 {[%clk
0:01:50.5]} 19... Bg6 {[%clk 0:02:07.7]} 20. Qb2 {[%clk 0:01:39]} 20... Ne4
{[%clk 0:02:06.8]} 21. Rdd1 {[%clk 0:01:35.9]} 21... Rac8 {[%clk 0:02:03.1]} 22.
Bb5 {[%clk 0:01:23.1]} 22... Red8 {[%clk 0:02:00.2]} 23. Ne2 {[%clk 0:01:17.3]}
23... Bh5 {[%clk 0:01:36.8]} 24. Rxd8+ {[%clk 0:01:13]} 24... Rxd8 {[%clk
0:01:33.2]} 25. Nd4 {[%clk 0:01:08.3]} 25... Qc5 {[%clk 0:01:27.4]} 26. Rc1
{[%clk 0:00:34.5]} 26... Nxc3 {[%clk 0:00:54.1]} 27. Qxc3 {[%clk 0:00:29.5]}
27... Qxc3 {[%clk 0:00:50.2]} 28. Rxc3 {[%clk 0:00:29.5]} 28... Rxd4 {[%clk
0:00:50.9]} 29. Rd3 {[%clk 0:00:20.2]} 29... Rxd3 {[%clk 0:00:49.4]} 30. Bxd3
{[%clk 0:00:19.9]} 30... Kf8 {[%clk 0:00:50.1]} 31. f4 {[%clk 0:00:19.8]} 31...
Ke7 {[%clk 0:00:45.6]} 32. g4 {[%clk 0:00:18.6]} 32... Bg6 {[%clk 0:00:43.2]}
33. f5 {[%clk 0:00:18.9]} 33... Bh7 {[%clk 0:00:43.7]} 34. Kf2 {[%clk
0:00:18.9]} 34... g6 {[%clk 0:00:43.3]} 35. fxg6 {[%clk 0:00:18.2]} 35... Bxg6
{[%clk 0:00:39.6]} 36. Bc4 {[%clk 0:00:17.2]} 36... Kd6 {[%clk 0:00:38.8]} 37.
Ke3 {[%clk 0:00:17.1]} 37... Ke5 {[%clk 0:00:38.7]} 38. Bb5 {[%clk 0:00:14.3]}
38... f5 {[%clk 0:00:38.2]} 39. gxf5 {[%clk 0:00:13.8]} 39... Bxf5 {[%clk
0:00:37.7]} 40. Bf1 {[%clk 0:00:13.8]} 40... Be6 {[%clk 0:00:34]} 41. a3 {[%clk
0:00:13.4]} 41... a6 {[%clk 0:00:29.5]} 42. Bg2 {[%clk 0:00:11.2]} 42... b5
{[%clk 0:00:29]} 43. Bf1 {[%clk 0:00:09.2]} 43... Bc4 {[%clk 0:00:25.4]} 44. Bg2
{[%clk 0:00:09.3]} 44... a5 {[%clk 0:00:25.5]} 45. Bf3 {[%clk 0:00:08.5]} 45...
b4 {[%clk 0:00:25.4]} 46. axb4 {[%clk 0:00:08.6]} 46... axb4 {[%clk 0:00:24.8]}
47. Kd2 {[%clk 0:00:08.5]} 47... Kd4 {[%clk 0:00:23.2]} 48. Bg4 {[%clk 0:00:08]}
48... b3 {[%clk 0:00:21.5]} 49. Kc1 {[%clk 0:00:08]} 49... Kc3 {[%clk
0:00:21.2]} 50. Bf5 {[%clk 0:00:07.5]} 50... Bd3 {[%clk 0:00:15.4]} 51. Bxd3
{[%clk 0:00:03.1]} 51... Kxd3 {[%clk 0:00:15.5]} 52. Kb2 {[%clk 0:00:03.4]}
52... Ke3 {[%clk 0:00:16.2]} 53. Kxb3 {[%clk 0:00:03.4]} 53... Kf3 {[%clk
0:00:16.9]} 54. Kc2 {[%clk 0:00:03.8]} 54... Kg3 {[%clk 0:00:17.3]} 55. Kd1
{[%clk 0:00:03.7]} 55... Kxh3 {[%clk 0:00:17.6]} 56. Ke1 {[%clk 0:00:04]} 56...
Kg2 {[%clk 0:00:18.1]} 0-1